[Event "Biel Master Tournament 2019"]
[Site "Biel"]
[Date "2019.07.25"]
[Round "4.9"]
[White "Petrosyan, Manuel"]
[Black "Bewersdorff, Oliver"]
[Result "1-0"]
[ECO "D90"]
[WhiteElo "2592"]
[BlackElo "2258"]
[Annotator "ChessBase"]
[PlyCount "43"]
[EventDate "2019.07.20"]
[EventType "swiss"]
[EventCountry "SUI"]
[SourceTitle "playchess.com"]
[Source "ChessBase"]
[SourceQuality "1"]
[TimeControl "40/5400+30:1800+30"]

1. d4 {[%emt 0:01:14]} Nf6 {[%emt 0:00:00]} 2. c4 {[%emt 0:00:05]} g6 {[%emt 0:00:05]} 3. Nc3 {[%emt 0:00:09]} d5 {[%emt 0:00:09]} 4. Nf3 {[%emt 0:00:12]} Bg7 {[%emt 0:00:07]} 5. h4 {[%emt 0:00:17]} c6 {[%emt 0:00:54]} 6. cxd5 {[%emt 0:00:15]} cxd5 {[%emt 0:00:06]} 7. Bf4 {[%emt 0:00:04]} Nc6 {[%emt 0:00:15]} 8. e3 {[%emt 0:00:11]} O-O {[%emt 0:00:09]} 9. Qb3 {[%emt 0:00:12]} a6 {[%emt 0:00:08]} 10. Rc1 {[%emt 0:05:09]} Na5 {[%emt 0:03:55]} 11. Qa3 {[%emt 0:00:26]} Be6 {[%emt 0:04:47]} 12. Be2 {[%emt 0:08:25]} h6 {[%emt 0:26:08]} 13. Ne5 {[%emt 0:09:14]} Rc8 {[%emt 0:12:21]} 14. O-O {[%emt 0:04:38]} Nc6 {[%emt 0:04:15]} 15. Nd3 {[%emt 0:04:58]} Nd7 {[%emt 0:05:47]} 16. Bg3 {[%emt 0:09:00]} Bf5 {[%emt 0:20:07]} 17. Nxd5 {[%emt 0:04:50]} Re8 {[%emt 0:00:31]} 18. Bc7 {[%emt 0:07:10]} Rxc7 {[%emt 0:00:23]} 19. Nxc7 {[%emt 0:00:08]} Qxc7 {[%emt 0:00:05]} 20. d5 {[%emt 0:00:32]} Ndb8 {[%emt 0:02:26]} 21. dxc6 {[%emt 0:01:39]} Nxc6 {[%emt 0:00:07]} 22. Nb4 {[%emt 0:00:51]} 1-0

[Event "Biel Master Tournament 2019"]
[Site "Biel"]
[Date "2019.07.25"]
[Round "4.10"]
[White "Gukesh D"]
[Black "Vaibhav, Suri"]
[Result "1-0"]
[ECO "E15"]
[WhiteElo "2520"]
[BlackElo "2591"]
[Annotator "ChessBase"]
[PlyCount "71"]
[EventDate "2019.07.20"]
[EventType "swiss"]
[EventCountry "SUI"]
[SourceTitle "playchess.com"]
[Source "ChessBase"]
[SourceQuality "1"]
[TimeControl "40/5400+30:1800+30"]

1. d4 {[%emt 0:00:00]} Nf6 {[%emt 0:00:00]} 2. c4 {[%emt 0:00:00]} e6 {[%emt 0:00:04]} 3. Nf3 {[%emt 0:00:05]} b6 {[%emt 0:01:24]} 4. g3 {[%emt 0:01:45]} Ba6 {[%emt 0:00:28]} 5. Qc2 {[%emt 0:04:21]} c5 {[%emt 0:01:01]} 6. d5 {[%emt 0:04:01]} exd5 {[%emt 0:00:19]} 7. cxd5 {[%emt 0:00:03]} Bb7 {[%emt 0:00:07]} 8. Bg2 {[%emt 0:10:06]} Nxd5 {[%emt 0:00:14]} 9. O-O {[%emt 0:13:57]} Nc6 {[%emt 0:00:23]} 10. a3 {[%emt 0:11:25]} Be7 {[%emt 0:01:38]} 11. Rd1 {[%emt 0:02:06]} Nf6 {[%emt 0:01:26]} 12. e4 {[%emt 0:05:02]} O-O {[%emt 0:00:48]} 13. Nc3 {[%emt 0:01:31]} Ne8 {[%emt 0:34:47]} 14. Nd5 {[%emt 0:13:44]} Nc7 {[%emt 0:05:59]} 15. b3 {[%emt 0:00:59]} d6 {[%emt 0:05:05]} 16. Ne3 {[%emt 0:06:04]} Re8 {[%emt 0:10:06]} 17. Nf5 {[%emt 0:05:03]} Bf8 {[%emt 0:06:24]} 18. Bf4 {[%emt 0:04:08]} Re6 {[%emt 0:08:39]} 19. Ng5 {[%emt 0:05:26]} Rg6 {[%emt 0:00:13]} 20. Nxd6 {[%emt 0:01:18]} Bxd6 {[%emt 0:02:42]} 21. e5 {[%emt 0:00:12]} Nb5 {[%emt 0:04:21]} 22. Nxf7 {[%emt 0:03:57]} Kxf7 {[%emt 0:00:20]} 23. Qc4+ {[%emt 0:00:42]} Kf8 {[%emt 0:12:33]} 24. Qxb5 {[%emt 0:00:12]} Nd4 {[%emt 0:00:48]} 25. Rxd4 {[%emt 0:00:16]} Bxg2 {[%emt 0:00:30]} 26. Rxd6 {[%emt 0:00:24]} Rxd6 {[%emt 0:00:08]} 27. exd6 {[%emt 0:00:02]} Bh3 {[%emt 0:00:40]} 28. Re1 {[%emt 0:04:29]} Qf6 {[%emt 0:00:35]} 29. Qc6 {[%emt 0:02:20]} Rc8 {[%emt 0:01:43]} 30. Qe4 {[%emt 0:00:40]} h6 {[%emt 0:00:23]} 31. Be5 {[%emt 0:00:28]} Qf7 {[%emt 0:00:16]} 32. Qh7 {[%emt 0:00:28]} Qg8 {[%emt 0:00:57]} 33. Qe4 {[%emt 0:00:26]} Qxb3 {[%emt 0:00:52]} 34. g4 {[%emt 0:00:18]} Kg8 {[%emt 0:00:36]} 35. d7 {[%emt 0:00:18]} Rd8 {[%emt 0:00:04]} 36. Bf6 {[%emt 0:00:29]} 1-0

[Event "Biel Master Tournament 2019"]
[Site "Biel"]
[Date "2019.07.25"]
[Round "4.11"]
[White "Flom, Gabriel"]
[Black "Antipov, Mikhail Al."]
[Result "1-0"]
[ECO "B15"]
[WhiteElo "2494"]
[BlackElo "2582"]
[Annotator "ChessBase"]
[PlyCount "107"]
[EventDate "2019.07.20"]
[EventType "swiss"]
[EventCountry "SUI"]
[SourceTitle "playchess.com"]
[Source "ChessBase"]
[SourceQuality "1"]
[TimeControl "40/5400+30:1800+30"]

1. d4 {[%emt 0:00:00]} g6 {[%emt 0:00:00]} 2. e4 {[%emt 0:01:26]} Bg7 {[%emt 0:00:00]} 3. Nc3 {[%emt 0:00:04]} c6 {[%emt 0:00:00]} 4. Be3 {[%emt 0:00:21]} d5 {[%emt 0:02:07]} 5. Nf3 {[%emt 0:01:17]} Qb6 {[%emt 0:20:16]} 6. Rb1 {[%emt 0:14:42]} dxe4 {[%emt 0:06:49]} 7. Nxe4 {[%emt 0:00:07]} Bf5 {[%emt 0:00:24]} 8. Ng3 {[%emt 0:05:06]} Bg4 {[%emt 0:01:36]} 9. c3 {[%emt 0:01:32]} Nf6 {[%emt 0:00:48]} 10. h3 {[%emt 0:00:13]} Bxf3 {[%emt 0:01:26]} 11. Qxf3 {[%emt 0:00:05]} Nd5 {[%emt 0:00:47]} 12. Bc4 {[%emt 0:06:05]} O-O {[%emt 0:01:14]} 13. Bxd5 {[%emt 0:02:38]} cxd5 {[%emt 0:00:05]} 14. Qxd5 {[%emt 0:00:12]} Qa6 {[%emt 0:03:50]} 15. a4 {[%emt 0:02:24]} Qxa4 {[%emt 0:07:52]} 16. Qxb7 {[%emt 0:00:06]} Qc6 {[%emt 0:08:47]} 17. Qxc6 {[%emt 0:00:10]} Nxc6 {[%emt 0:00:04]} 18. b4 {[%emt 0:07:42]} f5 {[%emt 0:01:13]} 19. f4 {[%emt 0:02:52]} Rac8 {[%emt 0:04:41]} 20. Ne2 {[%emt 0:02:23]} e6 {[%emt 0:01:26]} 21. Ra1 {[%emt 0:01:16]} Rc7 {[%emt 0:00:24]} 22. Kf2 {[%emt 0:04:08]} Ne7 {[%emt 0:00:13]} 23. Ra3 {[%emt 0:03:24]} Nd5 {[%emt 0:00:19]} 24. Rha1 {[%emt 0:00:34]} Rff7 {[%emt 0:00:07]} 25. Bd2 {[%emt 0:01:38]} Rfd7 {[%emt 0:00:11]} 26. Kf3 {[%emt 0:05:36]} Bf8 {[%emt 0:00:21]} 27. Ra6 {[%emt 0:03:16]} Kf7 {[%emt 0:02:23]} 28. g4 {[%emt 0:01:56]} h6 {[%emt 0:00:26]} 29. gxf5 {[%emt 0:07:06]} exf5 {[%emt 0:04:11]} 30. R1a5 {[%emt 0:01:33]} Nb6 {[%emt 0:02:50]} 31. Rc5 {[%emt 0:02:39]} Bxc5 {[%emt 0:01:52]} 32. bxc5 {[%emt 0:00:06]} Nc4 {[%emt 0:00:06]} 33. Bc1 {[%emt 0:00:12]} Re7 {[%emt 0:04:35]} 34. Ra4 {[%emt 0:00:19]} Nb6 {[%emt 0:00:06]} 35. cxb6 {[%emt 0:00:04]} axb6 {[%emt 0:00:04]} 36. Rb4 {[%emt 0:05:19]} Re6 {[%emt 0:00:44]} 37. Bd2 {[%emt 0:01:13]} Ra7 {[%emt 0:00:47]} 38. d5 {[%emt 0:03:08]} Re8 {[%emt 0:00:29]} 39. Nc1 {[%emt 0:04:26]} Rd8 {[%emt 0:01:26]} 40. c4 {[%emt 0:02:04]} Ra3+ {[%emt 0:00:06]} 41. Be3 {[%emt 0:34:24]} Re8 {[%emt 0:41:31]} 42. Rb3 {[%emt 0:00:25]} Rxb3 {[%emt 0:01:31]} 43. Nxb3 {[%emt 0:00:11]} Ra8 {[%emt 0:02:14]} 44. Nd4 {[%emt 0:06:49]} Ra3 {[%emt 0:00:56]} 45. Ke2 {[%emt 0:00:47]} g5 {[%emt 0:01:27]} 46. Nxf5 {[%emt 0:00:00]} gxf4 {[%emt 0:00:00]} 47. Bxb6 {[%emt 0:00:00]} Kf6 {[%emt 0:00:00]} 48. d6 {[%emt 0:00:00]} Ke6 {[%emt 0:00:00]} 49. Nd4+ {[%emt 0:00:00]} Kd7 {[%emt 0:00:00]} 50. c5 {[%emt 0:00:00]} Re3+ {[%emt 0:00:00]} 51. Kd2 {[%emt 0:00:00]} Rxh3 {[%emt 0:00:00]} 52. Bc7 {[%emt 0:00:00]} Rh5 {[%emt 0:00:00]} 53. c6+ {[%emt 0:00:00]} Kc8 {[%emt 0:00:00]} 54. Kd3 {[%emt 0:00:00]} 1-0

[Event "Biel Master Tournament 2019"]
[Site "Biel"]
[Date "2019.07.25"]
[Round "4.14"]
[White "Low, Zhen Yu Cyrus"]
[Black "Tabatabaei, M.amin"]
[Result "0-1"]
[ECO "C58"]
[WhiteElo "2155"]
[BlackElo "2601"]
[Annotator "ChessBase"]
[PlyCount "51"]
[EventDate "2019.07.20"]
[EventType "swiss"]
[EventCountry "SUI"]
[SourceTitle "playchess.com"]
[Source "ChessBase"]
[SourceQuality "1"]
[TimeControl "40/5400+30:1800+30"]

1. e4 {[%emt 0:00:00]} e5 {[%emt 0:01:05]} 2. Nf3 {[%emt 0:00:00]} Nc6 {[%emt 0:00:07]} 3. Bc4 {[%emt 0:00:00]} Nf6 {[%emt 0:00:41]} 4. Ng5 {[%emt 0:03:20]} d5 {[%emt 0:00:16]} 5. exd5 {[%emt 0:00:14]} Na5 {[%emt 0:00:08]} 6. Bb5+ {[%emt 0:00:06]} c6 {[%emt 0:00:11]} 7. dxc6 {[%emt 0:00:05]} bxc6 {[%emt 0:00:08]} 8. Bd3 {[%emt 0:00:06]} Nd5 {[%emt 0:00:12]} 9. Nf3 {[%emt 0:00:07]} Bd6 {[%emt 0:00:07]} 10. O-O {[%emt 0:00:10]} O-O {[%emt 0:00:09]} 11. Re1 {[%emt 0:00:55]} f5 {[%emt 0:00:08]} 12. Nxe5 {[%emt 0:05:23]} Qf6 {[%emt 0:00:16]} 13. Qe2 {[%emt 0:14:55]} Bb7 {[%emt 0:00:30]} 14. Nc4 {[%emt 0:16:56]} Nf4 {[%emt 0:14:48]} 15. Qf1 {[%emt 0:03:45]} c5 {[%emt 0:04:23]} 16. f3 {[%emt 0:05:13]} Nxd3 {[%emt 0:01:34]} 17. cxd3 {[%emt 0:01:40]} Nxc4 {[%emt 0:01:30]} 18. dxc4 {[%emt 0:00:08]} Qd4+ {[%emt 0:14:11]} 19. Kh1 {[%emt 0:00:34]} Qh4 {[%emt 0:00:07]} 20. g3 {[%emt 0:00:10]} Bxg3 {[%emt 0:00:10]} 21. Re2 {[%emt 0:00:07]} Rae8 {[%emt 0:00:11]} 22. Kg1 {[%emt 0:04:43]} Rxe2 {[%emt 0:00:46]} 23. Qxe2 {[%emt 0:00:10]} Bxf3 {[%emt 0:00:18]} 24. Qxf3 {[%emt 0:01:03]} Qxh2+ {[%emt 0:00:02]} 25. Kf1 {[%emt 0:00:10]} Re8 {[%emt 0:00:04]} 26. Qd1 {[%emt 0:00:23]} 0-1

[Event "Biel Master Tournament 2019"]
[Site "Biel"]
[Date "2019.07.25"]
[Round "4.16"]
[White "Sukandar, Irine Kharisma"]
[Black "Moussard, Jules"]
[Result "1/2-1/2"]
[ECO "B53"]
[WhiteElo "2396"]
[BlackElo "2576"]
[Annotator "ChessBase"]
[PlyCount "92"]
[EventDate "2019.07.20"]
[EventType "swiss"]
[EventCountry "SUI"]
[SourceTitle "playchess.com"]
[Source "ChessBase"]
[SourceQuality "1"]
[TimeControl "40/5400+30:1800+30"]

1. e4 {[%emt 0:04:21]} c5 {[%emt 0:00:00]} 2. Nf3 {[%emt 0:00:29]} d6 {[%emt 0:00:29]} 3. d4 {[%emt 0:00:31]} cxd4 {[%emt 0:00:00]} 4. Qxd4 {[%emt 0:01:35]} a6 {[%emt 0:00:49]} 5. h3 {[%emt 0:00:00]} Nf6 {[%emt 0:00:12]} 6. Be2 {[%emt 0:00:30]} e6 {[%emt 0:01:57]} 7. c4 {[%emt 0:02:22]} Be7 {[%emt 0:00:36]} 8. Nc3 {[%emt 0:00:30]} Qc7 {[%emt 0:01:21]} 9. Be3 {[%emt 0:00:39]} Nbd7 {[%emt 0:00:19]} 10. O-O {[%emt 0:00:33]} b6 {[%emt 0:00:26]} 11. b4 {[%emt 0:04:52]} Bb7 {[%emt 0:01:22]} 12. Nd2 {[%emt 0:07:23]} O-O {[%emt 0:03:21]} 13. Nb3 {[%emt 0:02:25]} Rfd8 {[%emt 0:03:30]} 14. Rac1 {[%emt 0:02:21]} Rac8 {[%emt 0:05:19]} 15. f3 {[%emt 0:08:31]} Nh5 {[%emt 0:06:29]} 16. Bf2 {[%emt 0:17:42]} Nf4 {[%emt 0:01:28]} 17. Bd1 {[%emt 0:00:26]} Bg5 {[%emt 0:08:21]} 18. Be3 {[%emt 0:05:03]} Ne5 {[%emt 0:28:59]} 19. Ne2 {[%emt 0:18:39]} Ned3 {[%emt 0:01:33]} 20. Bxf4 {[%emt 0:04:52]} Nxf4 {[%emt 0:00:25]} 21. Nxf4 {[%emt 0:00:14]} Bxf4 {[%emt 0:00:09]} 22. Rc2 {[%emt 0:00:09]} a5 {[%emt 0:04:30]} 23. a3 {[%emt 0:01:01]} axb4 {[%emt 0:00:05]} 24. axb4 {[%emt 0:00:05]} Ra8 {[%emt 0:00:17]} 25. Nc1 {[%emt 0:02:58]} Ra3 {[%emt 0:02:40]} 26. Kh1 {[%emt 0:00:39]} Rda8 {[%emt 0:01:38]} 27. Be2 {[%emt 0:00:35]} Be3 {[%emt 0:01:02]} 28. Qb2 {[%emt 0:03:06]} Qe7 {[%emt 0:03:10]} 29. Rc3 {[%emt 0:02:36]} Rxc3 {[%emt 0:01:04]} 30. Qxc3 {[%emt 0:00:04]} Qg5 {[%emt 0:00:29]} 31. Nd3 {[%emt 0:02:05]} e5 {[%emt 0:02:51]} 32. Ra1 {[%emt 0:01:25]} Rc8 {[%emt 0:00:04]} 33. Ra7 {[%emt 0:00:43]} Bc6 {[%emt 0:00:05]} 34. b5 {[%emt 0:00:38]} Be8 {[%emt 0:00:58]} 35. Qa3 {[%emt 0:02:00]} Qh6 {[%emt 0:05:54]} 36. Ra8 {[%emt 0:00:34]} Rxa8 {[%emt 0:00:09]} 37. Qxa8 {[%emt 0:00:01]} Kf8 {[%emt 0:00:06]} 38. Qd8 {[%emt 0:03:08]} Bd4 {[%emt 0:04:49]} 39. Kh2 {[%emt 0:00:19]} Qe3 {[%emt 0:08:08]} 40. Qxd6+ {[%emt 0:01:30]} Kg8 {[%emt 0:00:10]} 41. Qe7 {[%emt 0:30:54]} h5 {[%emt 0:13:52]} 42. Qxe8+ {[%emt 0:00:00]} Kh7 {[%emt 0:00:01]} 43. Qxf7 {[%emt 0:00:00]} h4 {[%emt 0:00:15]} 44. Qh5+ {[%emt 0:00:00]} Kg8 {[%emt 0:00:01]} 45. Qe8+ {[%emt 0:01:46]} Kh7 {[%emt 0:00:01]} 46. Qh5+ {[%emt 0:00:06]} Kg8 {[%emt 0:00:00]} 1/2-1/2

[Event "Biel Master Tournament 2019"]
[Site "Biel"]
[Date "2019.07.25"]
[Round "4.17"]
[White "Aryan, Chopra"]
[Black "Lee, Jun Hyeok"]
[Result "1-0"]
[ECO "C05"]
[WhiteElo "2553"]
[BlackElo "2383"]
[Annotator "ChessBase"]
[PlyCount "87"]
[EventDate "2019.07.20"]
[EventType "swiss"]
[EventCountry "SUI"]
[SourceTitle "playchess.com"]
[Source "ChessBase"]
[SourceQuality "1"]
[TimeControl "40/5400+30:1800+30"]

1. e4 {[%emt 0:00:00]} e6 {[%emt 0:00:00]} 2. d4 {[%emt 0:00:00]} d5 {[%emt 0:00:00]} 3. Nc3 {[%emt 0:00:00]} Nf6 {[%emt 0:00:00]} 4. e5 {[%emt 0:00:05]} Nfd7 {[%emt 0:00:00]} 5. f4 {[%emt 0:00:07]} c5 {[%emt 0:00:09]} 6. Nce2 {[%emt 0:00:05]} Nc6 {[%emt 0:00:16]} 7. Nf3 {[%emt 0:00:08]} b5 {[%emt 0:02:35]} 8. a3 {[%emt 0:15:49]} a5 {[%emt 0:02:26]} 9. c3 {[%emt 0:06:43]} a4 {[%emt 0:27:16]} 10. f5 {[%emt 0:07:35]} Nb6 {[%emt 0:16:05]} 11. fxe6 {[%emt 0:08:30]} Bxe6 {[%emt 0:00:28]} 12. dxc5 {[%emt 0:01:39]} Bxc5 {[%emt 0:01:27]} 13. Ned4 {[%emt 0:00:48]} Bxd4 {[%emt 0:04:25]} 14. Bxb5 {[%emt 0:02:53]} Bxc3+ {[%emt 0:00:55]} 15. bxc3 {[%emt 0:00:07]} Qc7 {[%emt 0:02:28]} 16. Nd4 {[%emt 0:07:20]} Bd7 {[%emt 0:02:36]} 17. Bxc6 {[%emt 0:03:48]} Bxc6 {[%emt 0:00:01]} 18. O-O {[%emt 0:01:58]} Bd7 {[%emt 0:02:47]} 19. e6 {[%emt 0:08:42]} Bxe6 {[%emt 0:01:15]} 20. Nxe6 {[%emt 0:03:06]} fxe6 {[%emt 0:00:02]} 21. Qh5+ {[%emt 0:12:38]} g6 {[%emt 0:00:48]} 22. Qh4 {[%emt 0:04:27]} Rf8 {[%emt 0:06:51]} 23. Rxf8+ {[%emt 0:05:28]} Kxf8 {[%emt 0:00:01]} 24. Qf6+ {[%emt 0:00:31]} Qf7 {[%emt 0:01:35]} 25. Qh8+ {[%emt 0:03:07]} Ke7 {[%emt 0:00:42]} 26. Qd4 {[%emt 0:00:06]} Nc4 {[%emt 0:02:28]} 27. Qc5+ {[%emt 0:00:42]} Kf6 {[%emt 0:01:48]} 28. Qd4+ {[%emt 0:02:50]} e5 {[%emt 0:01:46]} 29. Qh4+ {[%emt 0:00:01]} Ke6 {[%emt 0:02:35]} 30. Bh6 {[%emt 0:00:09]} g5 {[%emt 0:01:14]} 31. Bxg5 {[%emt 0:00:59]} Rf8 {[%emt 0:01:33]} 32. Qh6+ {[%emt 0:02:00]} Kd7 {[%emt 0:00:48]} 33. h3 {[%emt 0:00:09]} Rg8 {[%emt 0:06:00]} 34. Rd1 {[%emt 0:01:06]} e4 {[%emt 0:06:46]} 35. Kh1 {[%emt 0:01:37]} Qf5 {[%emt 0:03:44]} 36. h4 {[%emt 0:01:10]} Nd6 {[%emt 0:01:50]} 37. c4 {[%emt 0:00:42]} Nxc4 {[%emt 0:01:12]} 38. Qa6 {[%emt 0:00:25]} Nd6 {[%emt 0:00:34]} 39. Qa7+ {[%emt 0:00:21]} Kc6 {[%emt 0:00:33]} 40. Qxa4+ {[%emt 0:00:56]} Kc7 {[%emt 0:01:08]} 41. Rc1+ {[%emt 0:05:25]} Kb8 {[%emt 0:00:01]} 42. Rb1+ {[%emt 0:01:26]} Nb7 {[%emt 0:01:34]} 43. Qc6 {[%emt 0:00:10]} Rg7 {[%emt 0:00:28]} 44. Qe8+ {[%emt 0:03:20]} 1-0

[Event "Biel Master Tournament 2019"]
[Site "Biel"]
[Date "2019.07.25"]
[Round "4.18"]
[White "Sachdev, Tania"]
[Black "Epishin, Vladimir"]
[Result "1/2-1/2"]
[ECO "A53"]
[WhiteElo "2350"]
[BlackElo "2549"]
[Annotator "ChessBase"]
[PlyCount "50"]
[EventDate "2019.07.20"]
[EventType "swiss"]
[EventCountry "SUI"]
[SourceTitle "playchess.com"]
[Source "ChessBase"]
[SourceQuality "1"]
[TimeControl "40/5400+30:1800+30"]

1. d4 {[%emt 0:03:01]} Nf6 {[%emt 0:00:22]} 2. c4 {[%emt 0:00:05]} d6 {[%emt 0:00:36]} 3. Nc3 {[%emt 0:00:24]} Bf5 {[%emt 0:00:05]} 4. f3 {[%emt 0:02:43]} e5 {[%emt 0:00:25]} 5. e4 {[%emt 0:01:04]} Bd7 {[%emt 0:00:10]} 6. Nge2 {[%emt 0:01:12]} Be7 {[%emt 0:00:08]} 7. Be3 {[%emt 0:00:13]} c6 {[%emt 0:00:56]} 8. Qd2 {[%emt 0:04:02]} O-O {[%emt 0:01:36]} 9. g4 {[%emt 0:07:52]} b5 {[%emt 0:00:27]} 10. Ng3 {[%emt 0:00:48]} bxc4 {[%emt 0:05:24]} 11. O-O-O {[%emt 0:03:30]} exd4 {[%emt 0:02:20]} 12. Bxd4 {[%emt 0:02:05]} Be6 {[%emt 0:00:13]} 13. Nf5 {[%emt 0:04:54]} Ne8 {[%emt 0:00:05]} 14. f4 {[%emt 0:05:51]} f6 {[%emt 0:00:30]} 15. h4 {[%emt 0:09:50]} Nd7 {[%emt 0:03:18]} 16. g5 {[%emt 0:02:19]} Bxf5 {[%emt 0:05:23]} 17. exf5 {[%emt 0:00:44]} d5 {[%emt 0:00:16]} 18. Re1 {[%emt 0:20:58]} Bc5 {[%emt 0:09:37]} 19. Re6 {[%emt 0:05:05]} Rc8 {[%emt 0:04:00]} 20. Bh3 {[%emt 0:04:15]} Bxd4 {[%emt 0:18:41]} 21. Qxd4 {[%emt 0:00:02]} Nb6 {[%emt 0:00:10]} 22. Qc5 {[%emt 0:06:00]} Qc7 {[%emt 0:13:13]} 23. Qe3 {[%emt 0:01:38]} Qd8 {[%emt 0:04:17]} 24. Qc5 {[%emt 0:01:05]} Qc7 {[%emt 0:08:28]} 25. Qe3 {[%emt 0:00:06]} Qd8 {[%emt 0:02:00]} 1/2-1/2

[Event "Biel Master Tournament 2019"]
[Site "Biel"]
[Date "2019.07.25"]
[Round "4.19"]
[White "Bellahcene, Bilel"]
[Black "Loeffler, Markus"]
[Result "0-1"]
[ECO "B94"]
[WhiteElo "2541"]
[BlackElo "2339"]
[Annotator "ChessBase"]
[PlyCount "80"]
[EventDate "2019.07.20"]
[EventType "swiss"]
[EventCountry "SUI"]
[SourceTitle "playchess.com"]
[Source "ChessBase"]
[SourceQuality "1"]
[TimeControl "40/5400+30:1800+30"]

1. e4 {[%emt 0:01:27]} c5 {[%emt 0:00:46]} 2. Nf3 {[%emt 0:00:02]} d6 {[%emt 0:00:08]} 3. d4 {[%emt 0:00:04]} cxd4 {[%emt 0:00:04]} 4. Nxd4 {[%emt 0:00:03]} Nf6 {[%emt 0:00:08]} 5. Nc3 {[%emt 0:00:02]} a6 {[%emt 0:00:05]} 6. Bg5 {[%emt 0:00:04]} Nbd7 {[%emt 0:00:22]} 7. Bc4 {[%emt 0:01:41]} Qb6 {[%emt 0:00:18]} 8. Bb3 {[%emt 0:00:27]} e6 {[%emt 0:03:26]} 9. Qd2 {[%emt 0:00:37]} Nc5 {[%emt 0:01:55]} 10. f3 {[%emt 0:00:42]} Be7 {[%emt 0:00:34]} 11. O-O-O {[%emt 0:00:35]} Bd7 {[%emt 0:00:47]} 12. g4 {[%emt 0:02:11]} Qc7 {[%emt 0:00:42]} 13. h4 {[%emt 0:18:57]} b5 {[%emt 0:00:14]} 14. a3 {[%emt 0:00:40]} Qb6 {[%emt 0:07:18]} 15. Kb1 {[%emt 0:09:11]} a5 {[%emt 0:01:39]} 16. Bxf6 {[%emt 0:01:22]} Bxf6 {[%emt 0:05:41]} 17. g5 {[%emt 0:00:26]} Be7 {[%emt 0:00:24]} 18. Nd5 {[%emt 0:09:02]} exd5 {[%emt 0:02:37]} 19. Bxd5 {[%emt 0:00:21]} O-O {[%emt 0:20:52]} 20. Bxa8 {[%emt 0:18:48]} Rxa8 {[%emt 0:00:12]} 21. c3 {[%emt 0:01:42]} Rb8 {[%emt 0:19:39]} 22. Nc2 {[%emt 0:01:03]} Be6 {[%emt 0:05:55]} 23. Qd4 {[%emt 0:04:16]} Qb7 {[%emt 0:11:48]} 24. Rh2 {[%emt 0:04:40]} Bb3 {[%emt 0:00:50]} 25. Rc1 {[%emt 0:00:21]} Bc4 {[%emt 0:01:32]} 26. Rd1 {[%emt 0:01:41]} Qc8 {[%emt 0:02:21]} 27. Qe3 {[%emt 0:04:44]} Bf8 {[%emt 0:01:59]} 28. h5 {[%emt 0:01:03]} Bb3 {[%emt 0:03:05]} 29. Rg1 {[%emt 0:03:01]} Bxc2+ {[%emt 0:00:13]} 30. Rxc2 {[%emt 0:00:09]} b4 {[%emt 0:00:33]} 31. cxb4 {[%emt 0:06:28]} axb4 {[%emt 0:00:07]} 32. g6 {[%emt 0:02:51]} Qe6 {[%emt 0:01:49]} 33. gxh7+ {[%emt 0:04:12]} Kxh7 {[%emt 0:00:03]} 34. Rd2 {[%emt 0:03:08]} bxa3 {[%emt 0:01:59]} 35. Qxa3 {[%emt 0:00:02]} Be7 {[%emt 0:01:45]} 36. Rgg2 {[%emt 0:01:25]} Rb3 {[%emt 0:00:32]} 37. Qa8 {[%emt 0:00:26]} Rxf3 {[%emt 0:00:38]} 38. Rxg7+ {[%emt 0:00:34]} Kxg7 {[%emt 0:00:51]} 39. Rg2+ {[%emt 0:00:24]} Bg5 {[%emt 0:01:29]} 40. Rxg5+ {[%emt 0:00:24]} Kh6 {[%emt 0:02:44]} 0-1

[Event "Biel Master Tournament 2019"]
[Site "Biel"]
[Date "2019.07.25"]
[Round "4.20"]
[White "Akash, Ganesan"]
[Black "Shchekachev, Andrei"]
[Result "0-1"]
[ECO "B89"]
[WhiteElo "2394"]
[BlackElo "2531"]
[Annotator "ChessBase"]
[PlyCount "74"]
[EventDate "2019.07.20"]
[EventType "swiss"]
[EventCountry "SUI"]
[SourceTitle "playchess.com"]
[Source "ChessBase"]
[SourceQuality "1"]
[TimeControl "40/5400+30:1800+30"]

1. e4 {[%emt 0:00:00]} c5 {[%emt 0:04:35]} 2. Nf3 {[%emt 0:00:00]} e6 {[%emt 0:00:12]} 3. d4 {[%emt 0:00:00]} cxd4 {[%emt 0:00:07]} 4. Nxd4 {[%emt 0:00:00]} Nc6 {[%emt 0:00:10]} 5. Nc3 {[%emt 0:00:05]} d6 {[%emt 0:01:18]} 6. Be3 {[%emt 0:01:39]} Nf6 {[%emt 0:02:13]} 7. Bc4 {[%emt 0:01:26]} a6 {[%emt 0:10:17]} 8. Qe2 {[%emt 0:01:17]} Na5 {[%emt 0:01:59]} 9. Bb3 {[%emt 0:08:11]} b5 {[%emt 0:01:41]} 10. O-O-O {[%emt 0:01:16]} Qc7 {[%emt 0:06:57]} 11. g4 {[%emt 0:04:42]} Nxb3+ {[%emt 0:22:53]} 12. axb3 {[%emt 0:00:55]} Bb7 {[%emt 0:00:03]} 13. f3 {[%emt 0:08:39]} Rc8 {[%emt 0:04:04]} 14. Kb1 {[%emt 0:05:51]} Nd7 {[%emt 0:04:40]} 15. g5 {[%emt 0:07:45]} Nc5 {[%emt 0:05:22]} 16. h4 {[%emt 0:09:04]} b4 {[%emt 0:02:37]} 17. Na4 {[%emt 0:01:42]} e5 {[%emt 0:08:40]} 18. Nxc5 {[%emt 0:12:05]} dxc5 {[%emt 0:01:42]} 19. Nf5 {[%emt 0:00:21]} g6 {[%emt 0:00:02]} 20. Ng3 {[%emt 0:02:39]} c4 {[%emt 0:01:01]} 21. h5 {[%emt 0:07:01]} Be7 {[%emt 0:03:26]} 22. Rh2 {[%emt 0:02:30]} Rf8 {[%emt 0:01:46]} 23. hxg6 {[%emt 0:02:20]} hxg6 {[%emt 0:00:02]} 24. Qf1 {[%emt 0:02:10]} cxb3 {[%emt 0:02:02]} 25. cxb3 {[%emt 0:00:07]} Qc6 {[%emt 0:00:05]} 26. f4 {[%emt 0:04:25]} exf4 {[%emt 0:06:41]} 27. Qxf4 {[%emt 0:00:19]} Qe6 {[%emt 0:00:06]} 28. Ka2 {[%emt 0:03:17]} a5 {[%emt 0:01:54]} 29. Rhd2 {[%emt 0:12:31]} a4 {[%emt 0:00:14]} 30. Kb1 {[%emt 0:01:13]} f6 {[%emt 0:05:07]} 31. gxf6 {[%emt 0:01:03]} Rxf6 {[%emt 0:00:10]} 32. Qh6 {[%emt 0:00:51]} Bxe4+ {[%emt 0:01:29]} 33. Nxe4 {[%emt 0:00:06]} Qxe4+ {[%emt 0:00:03]} 34. Rd3 {[%emt 0:00:51]} Rf1 {[%emt 0:01:36]} 35. Qh8+ {[%emt 0:00:29]} Bf8 {[%emt 0:00:02]} 36. Ka1 {[%emt 0:00:34]} Qxd3 {[%emt 0:00:33]} 37. Qe5+ {[%emt 0:00:04]} Kf7 {[%emt 0:00:23]} 0-1